bitfinex/quotes_BTCUSD_20250206
["timestamp","ask_amount","ask_price","bid_price","bid_amount"]
[1738876732323,0.43307351,96555.0,96554.0,0.3561068]
[1738876732771,0.42607351,96555.0,96554.0,0.3561068]
[1738876733301,0.43507351,96555.0,96554.0,0.3561068]
[1738876733660,0.44107351,96555.0,96554.0,0.3561068]
[1738876734291,0.44307351,96555.0,96554.0,0.3561068]
[1738876734677,0.44107351,96555.0,96554.0,0.3561068]
[1738876734885,0.44307351,96555.0,96554.0,0.3561068]
[1738876735252,0.42807351,96555.0,96554.0,0.3561068]
[1738876735574,0.43707351,96555.0,96554.0,0.3561068]
[1738876736210,0.183,96554.0,96553.0,0.34807394]
[1738876736417,0.28679856,96554.0,96553.0,0.19747323]
[1738876736623,0.61117498,96554.0,96553.0,0.15604523]
[1738876737053,0.6141343,96554.0,96553.0,0.15604523]
[1738876737251,0.2707343,96554.0,96553.0,0.15604523]
[1738876737469,0.01823065,96554.0,96553.0,0.15604523]
[1738876737674,0.02023065,96554.0,96553.0,0.15604523]
[1738876737879,0.01495932,96554.0,96553.0,0.15604523]
[1738876738085,0.11746297,96554.0,96553.0,0.15604523]
[1738876738289,0.01295932,96554.0,96553.0,0.15604523]
[1738876738493,0.02720248,96554.0,96553.0,0.15604523]
[1738876738691,0.02395932,96554.0,96553.0,0.15604523]
[1738876738928,0.01495932,96554.0,96553.0,0.15604523]
[1738876739264,0.02195932,96554.0,96553.0,0.15604523]
[1738876739473,0.01295932,96554.0,96553.0,0.15604523]
[1738876739682,0.17195932,96554.0,96553.0,0.15604523]
[1738876740062,0.17726288,96554.0,96553.0,0.15604523]
[1738876740487,0.17926288,96554.0,96553.0,0.15604523]
[1738876740617,0.28176653,96554.0,96553.0,0.15604523]
[1738876742461,0.28176653,96554.0,96553.0,0.15615203]
[1738876743894,0.30476653,96554.0,96553.0,0.15615203]
[1738876744834,0.28176653,96554.0,96553.0,0.15615203]
[1738876746905,0.17926288,96554.0,96553.0,0.15615203]
[1738876747900,0.02926288,96554.0,96553.0,0.15615203]
[1738876748304,0.17931232,96554.0,96553.0,0.15615203]
[1738876749018,0.18468445,96554.0,96553.0,0.15615203]
[1738876749509,0.18268445,96554.0,96553.0,0.15615203]
[1738876749717,0.16072513,96554.0,96553.0,0.15615203]
[1738876749923,0.31172513,96554.0,96553.0,0.15615203]
[1738876753293,0.01137213,96554.0,96553.0,0.15615203]
[1738876753493,0.01137213,96554.0,96553.0,0.23745203]
[1738876753697,0.006,96554.0,96553.0,0.23745203]
[1738876753900,0.161353,96554.0,96553.0,0.23745203]
[1738876754313,0.156353,96554.0,96553.0,0.23745203]
[1738876754517,0.155353,96554.0,96553.0,0.15615203]
[1738876754694,0.15757728,96554.0,96553.0,0.15615203]
[1738876754898,0.1629594,96554.0,96553.0,0.15615203]
[1738876755479,0.1609594,96554.0,96553.0,0.15615203]
[1738876755675,0.1659594,96554.0,96553.0,0.15615203]
[1738876755880,0.1609594,96554.0,96553.0,0.15615203]
[1738876756306,0.1659594,96554.0,96553.0,0.15615203]
[1738876756685,0.1669594,96554.0,96553.0,0.15615203]
[1738876757045,0.17754915,96554.0,96553.0,0.15615203]
[1738876757284,0.4300528,96554.0,96553.0,0.15615203]
[1738876757485,0.4290528,96554.0,96553.0,0.15615203]
[1738876757677,0.4310528,96554.0,96553.0,0.15615203]
[1738876757938,0.4260528,96554.0,96553.0,0.15615203]
[1738876758128,0.4490528,96554.0,96553.0,0.15615203]
[1738876758468,0.4580528,96554.0,96553.0,0.15615203]
[1738876758667,0.4490528,96554.0,96553.0,0.15615203]
[1738876759064,0.4580528,96554.0,96553.0,0.15615203]
[1738876759262,0.5396528,96554.0,96553.0,0.15615203]
[1738876759465,0.5376528,96554.0,96553.0,0.15615203]
[1738876759684,0.5396528,96554.0,96553.0,0.15615203]
[1738876761313,0.5286528,96554.0,96553.0,0.15615203]
[1738876761653,0.5376528,96554.0,96553.0,0.15615203]
[1738876762189,0.4560528,96554.0,96553.0,0.15615203]
[1738876762835,0.2830528,96554.0,96553.0,0.15615203]
[1738876763244,0.2850528,96554.0,96553.0,0.15615203]
[1738876763875,0.4350528,96554.0,96553.0,0.15615203]
[1738876765682,0.33254915,96554.0,96553.0,0.15615203]
[1738876766883,0.18254915,96554.0,96553.0,0.15615203]
[1738876767085,0.1719594,96554.0,96553.0,0.15615203]
[1738876767291,0.16657728,96554.0,96553.0,0.15615203]
[1738876767781,0.17322162,96554.0,96553.0,0.15615203]
[1738876768050,0.17192697,96554.0,96553.0,0.15615203]
[1738876769251,0.42443062,96554.0,96553.0,0.15615203]
[1738876773850,0.17192697,96554.0,96553.0,0.15615203]
[1738876774090,0.01657397,96554.0,96553.0,0.15615203]
[1738876774287,0.16657728,96554.0,96553.0,0.20505203]
[1738876774443,0.01122428,96554.0,96553.0,0.20505203]
[1738876774646,0.16657728,96554.0,96553.0,0.20505203]
[1738876774865,0.16657728,96554.0,96553.0,0.15615203]
[1738876775439,0.15557728,96554.0,96553.0,0.15615203]
[1738876775639,0.16657728,96554.0,96553.0,0.15615203]
[1738876776221,0.15757728,96554.0,96553.0,0.15615203]
[1738876776393,0.15557728,96554.0,96553.0,0.15615203]
[1738876776647,0.16357728,96554.0,96553.0,0.15615203]
[1738876776803,0.17398556,96554.0,96553.0,0.15615203]
[1738876777385,0.16698556,96554.0,96553.0,0.15615203]
[1738876778700,0.17398556,96554.0,96553.0,0.15615203]
[1738876779619,0.32398556,96554.0,96553.0,0.15615203]
[1738876784557,0.32298556,96554.0,96553.0,0.15615203]
[1738876785008,0.31698556,96554.0,96553.0,0.15615203]
[1738876785328,0.32398556,96554.0,96553.0,0.15615203]
[1738876786241,0.42648921,96554.0,96553.0,0.15615203]
[1738876787969,0.32398556,96554.0,96553.0,0.15615203]
[1738876789103,0.31357728,96554.0,96553.0,0.15615203]
[1738876793038,0.16357728,96554.0,96553.0,0.15615203]
[1738876796064,0.00822428,96554.0,96553.0,0.25865568]
[1738876796284,0.16357728,96554.0,96553.0,0.25865568]
[1738876796789,0.00722428,96554.0,96553.0,0.41401068]
[1738876797015,0.00722428,96554.0,96553.0,0.25965568]
[1738876797924,0.00022428,96554.0,96553.0,0.25965568]
[1738876798147,0.15557728,96554.0,96553.0,0.25965568]
[1738876798380,0.15657728,96554.0,96553.0,0.25965568]
[1738876801483,0.00122428,96554.0,96553.0,0.25965568]
[1738876801721,0.00122428,96554.0,96553.0,0.44643495]
[1738876802457,0.00122428,96554.0,96553.0,0.25965568]
[1738876803417,0.15657728,96554.0,96553.0,0.25965568]
[1738876803637,0.00122428,96554.0,96553.0,0.25965568]
[1738876804599,0.15657728,96554.0,96553.0,0.15715203]
[1738876806062,0.00122428,96554.0,96553.0,0.25965568]
[1738876806314,0.00122428,96554.0,96553.0,0.59471433]
[1738876806536,0.00122428,96554.0,96553.0,0.64081433]
[1738876806788,0.00122428,96554.0,96553.0,0.67308067]
[1738876807258,0.00122428,96554.0,96553.0,0.69608067]
[1738876807496,0.00022428,96554.0,96553.0,0.69608067]
[1738876807967,0.00022428,96554.0,96553.0,0.70971355]
[1738876808196,0.00022428,96554.0,96553.0,0.70871355]
[1738876808432,0.00022428,96554.0,96553.0,0.71571355]
[1738876808664,0.00122428,96554.0,96553.0,0.72071355]
[1738876809119,0.00122428,96554.0,96553.0,0.71871355]
[1738876809342,0.00122428,96554.0,96553.0,0.72171355]
[1738876809545,0.00022428,96554.0,96553.0,0.73947321]
[1738876809770,0.00022428,96554.0,96553.0,0.63396956]
[1738876810405,0.00022428,96554.0,96553.0,0.63796956]
[1738876811024,0.00122428,96554.0,96553.0,0.75040956]
[1738876811642,0.00122428,96554.0,96553.0,0.71814322]
[1738876812019,0.00122428,96554.0,96553.0,0.75036835]
[1738876812344,0.00122428,96554.0,96553.0,0.862352]
[1738876814400,0.00122428,96554.0,96553.0,0.872352]
[1738876814808,2.7e-07,96557.0,96556.0,0.2994]
[1738876815015,0.00022471,96567.0,96566.0,0.477134]
[1738876815250,0.00022471,96567.0,96566.0,0.61186278]
[1738876815468,0.00022471,96567.0,96566.0,0.71436643]
[1738876815890,0.00022471,96612.0,96590.0,0.12995333]
[1738876816112,0.15529,96593.0,96592.0,0.10250365]
[1738876816516,0.15,96609.0,96592.0,0.10250365]
[1738876816724,0.155279,96600.0,96593.0,0.00051827]
[1738876816918,0.35702,96609.0,96594.0,0.1263195]
[1738876817126,0.35702,96609.0,96594.0,0.12580118]
[1738876817127,0.15,96609.0,96594.0,0.12580118]
[1738876817358,0.35702,96609.0,96594.0,0.12580118]
[1738876817896,0.004,96600.0,96594.0,0.12580118]
[1738876818156,0.15528,96600.0,96595.0,0.06181035]
[1738876818332,0.155277,96602.0,96596.0,0.10250365]
[1738876818535,0.155281,96599.0,96596.0,0.10250365]
[1738876818733,0.15,96608.0,96596.0,0.10250365]
[1738876818936,0.002,96609.0,96596.0,0.11285402]
[1738876819146,0.00022471,96612.0,96599.0,0.15528]
[1738876819365,0.00022471,96612.0,96600.0,0.23245698]
[1738876819619,0.00022471,96612.0,96600.0,0.23297499]
[1738876819824,0.00022471,96612.0,96611.0,0.155261]
[1738876819996,0.00022471,96612.0,96611.0,0.27329075]
[1738876820350,0.00022471,96612.0,96611.0,0.11802975]
[1738876820547,0.00022471,96612.0,96611.0,0.10250365]
[1738876822818,0.00522471,96612.0,96611.0,0.10350365]
[1738876822974,0.00522471,96612.0,96611.0,0.25876465]
[1738876823156,0.00522471,96612.0,96611.0,0.10350365]
[1738876823362,0.16048471,96612.0,96611.0,0.10350365]
[1738876823783,0.00522471,96612.0,96611.0,0.10350365]
[1738876824052,0.00022471,96612.0,96611.0,0.10350365]
[1738876824401,0.00022471,96612.0,96611.0,0.15008352]
[1738876824609,0.00022471,96612.0,96611.0,0.15108352]
[1738876825103,0.00022471,96612.0,96611.0,0.10450365]
[1738876825311,0.00022471,96612.0,96611.0,0.25976465]
[1738876826002,0.00022471,96612.0,96611.0,0.10450365]
[1738876826403,0.15548471,96612.0,96611.0,0.10450365]
[1738876827734,0.15548471,96612.0,96611.0,0.10350365]
[1738876828034,0.0469,96611.0,96578.0,0.538]
[1738876828238,0.00129395,96610.0,96589.0,0.08256658]
[1738876828460,0.155293,96591.0,96590.0,0.10250365]
[1738876830238,0.155293,96591.0,96590.0,0.10350365]
[1738876830842,0.15,96598.0,96576.0,0.0095]
[1738876831054,0.081,96595.0,96590.0,0.001]
[1738876831259,0.155293,96591.0,96590.0,0.001]
[1738876831923,0.569415,96590.0,96577.0,0.10250365]
[1738876832147,0.155314,96578.0,96577.0,0.10250365]
[1738876832502,0.00617291,96578.0,96577.0,0.10250365]
[1738876832845,0.207073,96585.0,96577.0,0.10250365]
[1738876833045,0.155313,96579.0,96577.0,0.10250365]
[1738876833245,0.00616465,96578.0,96577.0,0.10250365]
[1738876833689,0.16147865,96578.0,96577.0,0.10250365]
[1738876833908,0.16147865,96578.0,96563.0,0.0094]
[1738876833909,0.00616465,96578.0,96554.0,0.0791]
[1738876834121,0.155339,96563.0,96553.0,0.27499203]
[1738876834326,0.00022428,96579.0,96577.0,0.005]
[1738876834536,0.001,96578.0,96577.0,0.005]
[1738876834749,0.00022428,96579.0,96570.0,0.20761965]
[1738876834941,0.00022428,96579.0,96577.0,0.004]
[1738876835148,0.00022428,96579.0,96578.0,0.10250365]
[1738876835270,0.00022428,96579.0,96578.0,0.25781765]
[1738876835647,0.00622428,96579.0,96578.0,0.10250365]
[1738876836396,0.16153728,96579.0,96578.0,0.10250365]
[1738876836648,0.155314,96578.0,96577.0,0.003]
[1738876836799,0.275814,96578.0,96577.0,0.002]
[1738876837220,0.275814,96578.0,96553.0,0.26559203]
[1738876837221,0.155349,96557.0,96553.0,0.26559203]
[1738876837513,0.1205,96578.0,96556.0,0.08256658]
[1738876837693,0.1205,96578.0,96557.0,0.10250365]
[1738876837694,0.15,96575.0,96557.0,0.10250365]
[1738876837830,0.00129438,96577.0,96557.0,0.10250365]
[1738876837831,0.155345,96559.0,96557.0,0.10250365]
[1738876839090,0.155347,96558.0,96557.0,0.10350365]
[1738876839290,0.305347,96558.0,96557.0,0.001]
[1738876839508,0.380347,96558.0,96557.0,0.021]
[1738876839718,0.38646555,96558.0,96557.0,0.001]
[1738876840098,0.39701062,96558.0,96557.0,0.002]
[1738876840451,0.39701062,96558.0,96557.0,0.001]
[1738876840899,0.305353,96554.0,96553.0,0.15615203]
[1738876841312,0.31148148,96554.0,96553.0,0.15615203]
[1738876842745,0.35768148,96554.0,96553.0,0.15615203]
[1738876843393,0.35868148,96554.0,96553.0,0.15615203]
[1738876844158,0.35768148,96554.0,96553.0,0.15615203]
[1738876844522,0.36968148,96554.0,96553.0,0.15715203]
[1738876844724,0.36068148,96554.0,96553.0,0.15615203]
[1738876844943,0.35768148,96554.0,96553.0,0.15615203]
[1738876845150,0.36668148,96554.0,96553.0,0.15715203]
[1738876845419,0.36968148,96554.0,96553.0,0.15715203]
[1738876846409,0.35768148,96554.0,96553.0,0.15615203]
[1738876846611,0.46818513,96554.0,96553.0,0.15615203]
[1738876846817,0.47018513,96554.0,96553.0,0.15615203]
[1738876847019,0.46218513,96554.0,96553.0,0.15615203]
[1738876847246,0.46918513,96554.0,96553.0,0.15615203]
[1738876847595,0.46318513,96554.0,96553.0,0.15615203]
[1738876847763,0.47218513,96554.0,96553.0,0.15615203]
[1738876847960,0.46918513,96554.0,96553.0,0.15615203]
[1738876848172,0.46018513,96554.0,96553.0,0.15615203]
[1738876848419,0.56368513,96554.0,96553.0,0.09401003]
[1738876849440,0.57268513,96554.0,96553.0,0.09501003]
[1738876849640,0.56968513,96554.0,96553.0,0.09501003]
[1738876849869,0.54968513,96554.0,96553.0,0.09401003]
[1738876850071,0.55868513,96554.0,96553.0,0.09501003]
[1738876850654,0.55568513,96554.0,96553.0,0.09501003]
[1738876850894,0.54068513,96554.0,96553.0,0.09401003]
[1738876851033,0.54968513,96554.0,96553.0,0.09501003]
[1738876851233,0.54668513,96554.0,96553.0,0.09501003]
[1738876851436,0.53768513,96554.0,96553.0,0.09401003]
[1738876852570,0.53968513,96554.0,96553.0,0.09501003]
[1738876852793,0.54868513,96554.0,96553.0,0.09501003]
[1738876853020,0.54868513,96554.0,96553.0,0.09401003]
[1738876853233,0.55568513,96554.0,96553.0,0.09501003]
[1738876853562,0.55768513,96554.0,96553.0,0.09501003]
[1738876853934,0.55568513,96554.0,96553.0,0.09501003]
[1738876854133,0.53968513,96554.0,96553.0,0.09401003]
[1738876854335,0.54668513,96554.0,96553.0,0.09501003]
[1738876857377,0.15,96553.0,96552.0,0.4067418]
[1738876857620,0.43085865,96553.0,96552.0,0.3445998]
[1738876857827,0.43693715,96553.0,96552.0,0.3445998]
[1738876858429,0.43693715,96553.0,96552.0,0.3238858]
[1738876859198,0.44093715,96553.0,96552.0,0.3238858]
[1738876859619,0.44993715,96553.0,96552.0,0.3238858]
[1738876859820,0.44593715,96553.0,96552.0,0.3238858]
[1738876860188,0.44993715,96553.0,96552.0,0.3031718]
[1738876860387,0.52613715,96553.0,96552.0,0.02105169]
[1738876860594,0.375856,96552.0,96551.0,0.45243128]
[1738876860801,0.48442545,96552.0,96551.0,0.45243128]
[1738876861233,0.48442545,96552.0,96551.0,0.43171728]
[1738876861440,0.48442545,96552.0,96551.0,0.28017734]
[1738876862060,0.2089218,96552.0,96551.0,0.28017734]
[1738876862280,0.1614218,96552.0,96551.0,0.28017734]
[1738876862723,0.155356,96552.0,96551.0,0.28017734]
[1738876862925,0.159356,96552.0,96551.0,0.28017734]
[1738876863379,0.155356,96552.0,96551.0,0.28017734]
[1738876863646,0.17191834,96552.0,96551.0,0.28017734]
[1738876863795,0.17291834,96552.0,96551.0,0.28017734]
[1738876864221,0.17691834,96552.0,96551.0,0.28017734]
[1738876867433,0.02156234,96552.0,96551.0,0.28017734]
[1738876867846,0.014,96552.0,96551.0,0.28017734]
[1738876868227,0.014,96552.0,96551.0,0.43553534]
[1738876868435,0.014,96552.0,96551.0,0.28017734]
[1738876868637,0.169356,96552.0,96551.0,0.28017734]
[1738876869169,0.155356,96552.0,96551.0,0.28017734]
[1738876869299,0.159356,96552.0,96551.0,0.28017734]
[1738876869494,0.16153458,96552.0,96551.0,0.28017734]
[1738876869765,0.17199653,96552.0,96551.0,0.28017734]
[1738876869972,0.17499653,96552.0,96551.0,0.28017734]
[1738876871191,0.32499653,96552.0,96551.0,0.28028414]
[1738876871595,0.15917858,96552.0,96551.0,0.28028414]
[1738876871796,0.003,96552.0,96551.0,0.28028414]
[1738876871995,0.158356,96552.0,96551.0,0.28028414]
[1738876872198,0.156356,96552.0,96551.0,0.28028414]
[1738876872696,0.16753458,96552.0,96551.0,0.28028414]
[1738876872908,0.16253458,96552.0,96551.0,0.28028414]
[1738876873117,0.42133294,96552.0,96551.0,0.28028414]
[1738876873338,0.46943823,96552.0,96551.0,0.28028414]
[1738876873693,0.46843823,96552.0,96551.0,0.28028414]
[1738876874011,0.46343823,96552.0,96551.0,0.28028414]
[1738876874233,0.47143823,96552.0,96551.0,0.28028414]
[1738876874451,0.31953458,96552.0,96551.0,0.28028414]
[1738876875166,0.32053458,96552.0,96551.0,0.28028414]
[1738876875402,0.31253458,96552.0,96551.0,0.28028414]
[1738876875629,0.31153458,96552.0,96551.0,0.28028414]
[1738876875876,0.32153458,96552.0,96551.0,0.28028414]
[1738876876101,0.31353458,96552.0,96551.0,0.28028414]
[1738876876352,0.31153458,96552.0,96551.0,0.28028414]
[1738876876615,0.31853458,96552.0,96551.0,0.28028414]
[1738876876836,0.31253458,96552.0,96551.0,0.28028414]
[1738876877053,0.32053458,96552.0,96551.0,0.28028414]
[1738876877211,0.31253458,96552.0,96551.0,0.28028414]
[1738876878505,0.41503823,96552.0,96551.0,0.28028414]
[1738876878749,0.42203823,96552.0,96551.0,0.28028414]
[1738876878916,0.41403823,96552.0,96551.0,0.28028414]
[1738876879082,0.42403823,96552.0,96551.0,0.28028414]
[1738876879492,0.41703823,96552.0,96551.0,0.28028414]
[1738876879754,0.42603823,96552.0,96551.0,0.28028414]
[1738876880003,0.32353458,96552.0,96551.0,0.28028414]
[1738876880241,0.32053458,96552.0,96551.0,0.28028414]
[1738876880503,0.31153458,96552.0,96551.0,0.28028414]
[1738876881403,0.31453458,96552.0,96551.0,0.28028414]
[1738876881893,0.32053458,96552.0,96551.0,0.28028414]
[1738876882111,0.31153458,96552.0,96551.0,0.28028414]
[1738876882305,0.32353458,96552.0,96551.0,0.28028414]
[1738876882769,0.31153458,96552.0,96551.0,0.28028414]
[1738876883025,0.32353458,96552.0,96551.0,0.28028414]
[1738876883286,0.31453458,96552.0,96551.0,0.28028414]
[1738876883531,0.42603823,96552.0,96551.0,0.28028414]
[1738876884496,0.42303823,96552.0,96551.0,0.28028414]
[1738876884696,0.41426251,96552.0,96551.0,0.28028414]
[1738876884924,0.41726251,96552.0,96551.0,0.28028414]
[1738876885325,0.42326251,96552.0,96551.0,0.28028414]
[1738876885901,0.42626251,96552.0,96551.0,0.28028414]
[1738876886100,0.31175886,96552.0,96551.0,0.28028414]
[1738876886515,0.17075886,96552.0,96551.0,0.28028414]
[1738876886671,0.16175886,96552.0,96551.0,0.28028414]
[1738876886873,0.16475886,96552.0,96551.0,0.28028414]
[1738876887902,0.32375886,96552.0,96551.0,0.28028414]
[1738876888135,0.32075886,96552.0,96551.0,0.28028414]
[1738876888320,0.31175886,96552.0,96551.0,0.28028414]
[1738876888487,0.41726251,96552.0,96551.0,0.28028414]
[1738876888699,0.42626251,96552.0,96551.0,0.28028414]
[1738876888939,0.41426251,96552.0,96551.0,0.28028414]
[1738876889150,0.41726251,96552.0,96551.0,0.28028414]
[1738876889380,0.42626251,96552.0,96551.0,0.28028414]
[1738876889595,0.49386251,96552.0,96551.0,0.21814114]
[1738876889817,0.49386251,96552.0,96551.0,0.17671114]
[1738876890057,0.56536251,96552.0,96551.0,0.08645506]
[1738876890252,0.328358,96551.0,96550.0,0.43414396]
[1738876890467,0.43714217,96551.0,96550.0,0.43414396]
[1738876891366,0.43714217,96551.0,96550.0,0.14581396]
[1738876891597,0.51404217,96551.0,96550.0,0.08366896]
[1738876891799,0.89314217,96551.0,96550.0,0.08366896]
[1738876892173,0.89314217,96551.0,96550.0,0.03726052]
[1738876892379,0.89314217,96551.0,96550.0,0.01654552]
[1738876892596,0.90214217,96551.0,96550.0,5.2e-07]
[1738876892791,0.89314217,96551.0,96550.0,5.2e-07]
[1738876893020,0.89714217,96551.0,96550.0,5.2e-07]
[1738876893226,0.338359,96550.0,96549.0,0.41046348]
[1738876893434,0.51776265,96550.0,96549.0,0.36903348]
[1738876893546,0.52402765,96550.0,96549.0,0.32760348]
[1738876893749,0.53402765,96550.0,96549.0,0.21536848]
[1738876894008,0.58272765,96550.0,96549.0,0.21536848]
[1738876894234,0.58272765,96550.0,96549.0,0.14936848]
[1738876894435,0.58272765,96550.0,96549.0,0.06873608]
[1738876894649,0.193,96549.0,96548.0,0.47698381]
[1738876894854,0.58267855,96549.0,96548.0,0.46544376]
[1738876895283,0.58267855,96549.0,96548.0,0.43256177]
[1738876895495,0.59891092,96549.0,96548.0,0.37041677]
[1738876895698,0.59891092,96549.0,96548.0,0.34970177]
[1738876896441,0.61391092,96549.0,96548.0,0.32898677]
[1738876897184,0.60491092,96549.0,96548.0,0.26684177]
[1738876897483,0.60491092,96549.0,96548.0,0.24612677]
[1738876897694,0.60491092,96549.0,96548.0,0.18569677]
[1738876897899,0.60491092,96549.0,96548.0,0.16498177]
[1738876898103,0.59891092,96549.0,96548.0,0.12355177]
[1738876898259,0.60491092,96549.0,96548.0,0.10283677]
[1738876898471,0.61391092,96549.0,96548.0,0.06140677]
[1738876898886,0.61391092,96549.0,96548.0,0.01997677]
[1738876899982,0.348363,96548.0,96547.0,0.51281786]
[1738876900183,0.45086665,96548.0,96547.0,0.47138786]
[1738876900380,0.45707336,96548.0,96547.0,0.42995786]
[1738876901549,0.46307336,96548.0,96547.0,0.42995786]
[1738876901716,0.45207336,96548.0,96547.0,0.42995786]
[1738876902189,0.46207336,96548.0,96547.0,0.28992668]
[1738876902365,0.46207336,96548.0,96547.0,0.22778168]
[1738876902582,0.46207336,96548.0,96547.0,0.20878168]
[1738876902767,0.45207336,96548.0,96547.0,0.16973248]
[1738876902919,0.77247336,96548.0,96547.0,0.16973248]
[1738876904450,0.78247336,96548.0,96547.0,0.07492648]
[1738876904677,0.77247336,96548.0,96547.0,0.07492648]
[1738876907716,0.77247336,96548.0,96547.0,0.05592648]
[1738876909308,0.77247336,96548.0,96547.0,0.05603328]
[1738876912521,0.74947336,96548.0,96547.0,0.05603328]
[1738876912722,0.74947336,96548.0,96547.0,0.03703328]
[1738876912923,0.32656971,96548.0,96547.0,0.03703328]
[1738876913124,0.17656971,96548.0,96547.0,0.03703328]
[1738876914050,0.32056971,96548.0,96547.0,0.03703328]
[1738876914467,0.32356971,96548.0,96547.0,0.03703328]
[1738876915214,0.31456971,96548.0,96547.0,0.03703328]
[1738876915419,0.32356971,96548.0,96547.0,0.03703328]
[1738876915571,0.42607336,96548.0,96547.0,0.03703328]
[1738876915777,0.44907336,96548.0,96547.0,0.03703328]
[1738876917580,0.44907336,96548.0,96547.0,0.01803328]
[1738876919255,0.42607336,96548.0,96547.0,0.01803328]
[1738876920828,0.76947336,96548.0,96547.0,0.01803328]
[1738876921037,0.76969764,96548.0,96547.0,0.01803328]
[1738876921776,0.74669764,96548.0,96547.0,0.01803328]
[1738876921988,0.64419399,96548.0,96547.0,0.01803328]
[1738876922621,0.74669764,96548.0,96547.0,0.01803328]
[1738876923686,0.76969764,96548.0,96547.0,0.01803328]
[1738876926526,0.74669764,96548.0,96547.0,0.01803328]
[1738876928713,0.305364,96547.0,96546.0,0.55014924]
[1738876928849,0.40786765,96547.0,96546.0,0.55014924]
[1738876929052,0.414115,96547.0,96546.0,0.55014924]
[1738876929870,0.417115,96547.0,96546.0,0.55014924]
[1738876930077,0.426115,96547.0,96546.0,0.55014924]
[1738876930603,0.446115,96547.0,96546.0,0.55014924]
[1738876930836,0.446115,96547.0,96546.0,0.52928297]
[1738876931039,0.575015,96547.0,96546.0,0.50255047]
[1738876931725,0.579015,96547.0,96546.0,0.50255047]
[1738876932196,0.470215,96547.0,96546.0,0.50255047]
[1738876932419,0.16161135,96547.0,96546.0,0.50255047]
[1738876932645,0.17461135,96547.0,96546.0,0.50255047]
[1738876933115,0.01924735,96547.0,96546.0,0.57895047]
[1738876933375,0.01524735,96547.0,96546.0,0.57895047]
[1738876933614,0.002,96547.0,96546.0,0.57895047]
[1738876933853,0.011,96547.0,96546.0,0.57895047]
[1738876934093,0.011,96547.0,96546.0,0.57905727]
[1738876934329,0.161,96547.0,96546.0,0.57905727]
[1738876934564,0.316364,96547.0,96546.0,0.57905727]
[1738876934783,0.316364,96547.0,96546.0,0.50265727]
[1738876935339,0.41886765,96547.0,96546.0,0.50265727]
[1738876935547,0.42592635,96547.0,96546.0,0.50265727]
[1738876937164,0.0180587,96547.0,96546.0,0.50265727]
[1738876937377,0.0180587,96547.0,96546.0,0.58205727]
[1738876937566,0.166364,96547.0,96546.0,0.58205727]
[1738876937792,0.316364,96547.0,96546.0,0.58205727]
[1738876937965,0.161,96547.0,96546.0,0.58205727]
[1738876940665,0.316364,96547.0,96546.0,0.58205727]
[1738876942469,0.316364,96547.0,96546.0,0.50265727]
[1738876943162,0.3257798,96547.0,96546.0,0.50265727]
[1738876945634,0.32600408,96547.0,96546.0,0.50265727]
[1738876946797,0.42850773,96547.0,96546.0,0.50265727]
[1738876948193,0.32600408,96547.0,96546.0,0.50265727]
[1738876949071,0.17064008,96547.0,96546.0,0.62735727]
[1738876949475,0.16122428,96547.0,96546.0,0.62735727]
[1738876950098,0.16122428,96547.0,96546.0,0.58025727]
[1738876950317,0.31658828,96547.0,96546.0,0.50265727]
[1738876952443,0.41909193,96547.0,96546.0,0.50265727]
[1738876953861,0.41909193,96547.0,96546.0,0.46122527]
[1738876953862,0.84009193,96547.0,96546.0,0.46122527]
[1738876954113,0.8608877,96547.0,96546.0,0.2534882]
[1738876954315,0.87023261,96547.0,96546.0,0.21240821]
[1738876954516,0.54983261,96547.0,96546.0,0.21240821]
[1738876954967,0.54783261,96547.0,96546.0,0.21240821]
[1738876955138,0.55083261,96547.0,96546.0,0.21240821]
[1738876955343,0.54183261,96547.0,96546.0,0.21240821]
[1738876955751,0.55083261,96547.0,96546.0,0.21240821]
[1738876957302,0.55083261,96547.0,96546.0,0.17097621]
[1738876957646,0.55083261,96547.0,96546.0,0.15197621]
[1738876958660,0.42943684,96547.0,96546.0,0.15197621]
[1738876958854,0.27943684,96547.0,96546.0,0.15197621]
[1738876959266,0.16758828,96547.0,96546.0,0.15197621]
[1738876960319,0.42009193,96547.0,96546.0,0.15197621]
[1738876960520,0.42946117,96547.0,96546.0,0.15197621]
[1738876964536,0.32695752,96547.0,96546.0,0.15197621]
[1738876964739,0.31758828,96547.0,96546.0,0.15197621]
[1738876967437,0.42009193,96547.0,96546.0,0.15197621]
[1738876967843,0.42946237,96547.0,96546.0,0.15197621]
[1738876968927,0.42946237,96547.0,96546.0,0.10531211]
[1738876970682,0.32695872,96547.0,96546.0,0.10531211]
[1738876971091,0.31758828,96547.0,96546.0,0.10531211]
[1738876978858,0.01222428,96547.0,96546.0,0.10531211]
[1738876979062,0.16758828,96547.0,96546.0,0.10531211]
[1738876979437,0.31758828,96547.0,96546.0,0.10531211]
[1738876979635,0.31458828,96547.0,96546.0,0.10531211]
[1738876980017,0.31758828,96547.0,96546.0,0.10531211]
[1738876980460,0.30558828,96547.0,96546.0,0.10531211]
[1738876981110,0.15022428,96547.0,96546.0,0.10531211]
[1738876981786,0.15222428,96547.0,96546.0,0.10531211]
[1738876981997,0.15922428,96547.0,96546.0,0.10531211]
[1738876982311,0.15722428,96547.0,96546.0,0.10531211]
[1738876982656,0.15822428,96547.0,96546.0,0.10531211]
[1738876985388,0.31358828,96547.0,96546.0,0.10531211]
[1738876987950,0.32387065,96547.0,96546.0,0.10531211]
[1738876989389,0.33328489,96547.0,96546.0,0.10531211]
[1738876995429,0.01763852,96547.0,96546.0,0.10531211]
[1738876995728,0.01763852,96547.0,96546.0,0.33649767]
[1738876995907,0.00822428,96547.0,96546.0,0.33597811]
[1738876996306,0.00822428,96547.0,96546.0,0.18061211]
[1738876996724,0.00022428,96547.0,96546.0,0.18061211]
[1738876996939,0.00422428,96547.0,96546.0,0.18061211]
[1738876997525,0.15958828,96547.0,96546.0,0.18061211]
[1738876997937,0.00422428,96547.0,96546.0,0.18061211]
[1738876998360,0.00022428,96547.0,96546.0,0.18061211]
[1738876998565,0.00222428,96547.0,96546.0,0.18061211]
[1738876999275,0.15758828,96547.0,96546.0,0.18061211]
[1738877000052,0.00222428,96547.0,96546.0,0.18061211]
[1738877000674,0.15758828,96547.0,96546.0,0.18061211]
[1738877000878,0.00222428,96547.0,96546.0,0.18061211]
[1738877001253,0.00222428,96547.0,96546.0,0.44000131]
[1738877001459,0.00222428,96547.0,96546.0,0.48788176]
[1738877002138,0.00222428,96547.0,96546.0,0.59038541]
[1738877002767,0.00222428,96547.0,96546.0,0.48788176]
[1738877003079,0.00222428,96547.0,96546.0,0.48688176]
[1738877003901,0.00222428,96547.0,96546.0,0.52010574]
[1738877004113,0.00222428,96547.0,96546.0,0.5594883]
[1738877004315,0.00022428,96547.0,96546.0,0.5594883]
[1738877004547,0.00022428,96547.0,96546.0,0.60805301]
[1738877004719,0.00022428,96547.0,96546.0,0.60905301]